bitfinex-derivatives/quotes_BTCF0:USTF0_20230901
["timestamp","ask_amount","ask_price","bid_price","bid_amount"]
[1693584124111,0.6578,25807.0,25802.0,0.6438]
[1693584124902,0.6208,25804.0,25802.0,0.006]
[1693584125112,0.11123745,25803.0,25802.0,0.006]
[1693584125411,0.05654838,25803.0,25802.0,0.006]
[1693584125614,0.11123745,25803.0,25802.0,0.006]
[1693584125914,0.05654838,25803.0,25802.0,0.006]
[1693584126112,0.05654838,25803.0,25802.0,0.003]
[1693584126502,0.05654838,25803.0,25802.0,0.006]
[1693584126909,0.67734838,25803.0,25802.0,0.006]
[1693584127212,0.76803745,25803.0,25802.0,0.007]
[1693584127716,0.76803745,25803.0,25802.0,0.004]
[1693584127918,0.80403745,25803.0,25802.0,0.008]
[1693584129113,0.82403745,25803.0,25802.0,0.008]
[1693584129321,1.44483745,25803.0,25802.0,0.008]
[1693584131315,1.63758094,25803.0,25802.0,0.008]
[1693584131517,1.2,25796.0,25789.0,0.07726586]
[1693584131718,1.2,25796.0,25789.0,0.05856586]
[1693584131719,0.6208,25793.0,25789.0,0.05856586]
[1693584131919,0.62467,25791.0,25789.0,0.02]
[1693584132113,0.9208,25794.0,25789.0,0.6408]
[1693584132315,0.6,25795.0,25793.0,0.6208]
[1693584132509,0.3,25797.0,25794.0,0.6268]
[1693584132714,0.003,25796.0,25794.0,0.02]
[1693584132911,0.003,25796.0,25795.0,0.6268]
[1693584133113,0.003,25796.0,25795.0,0.66710695]
[1693584133308,0.92467,25800.0,25795.0,0.66710695]
[1693584133509,0.92467,25800.0,25795.0,0.6408]
[1693584133925,0.30387,25800.0,25797.0,0.6208]
[1693584134223,0.05654838,25799.0,25797.0,0.6268]
[1693584134419,0.05654838,25799.0,25797.0,0.64110695]
[1693584134617,0.30387,25800.0,25797.0,0.6208]
[1693584135123,0.36041838,25800.0,25798.0,0.006]
[1693584135622,0.30387,25800.0,25797.0,0.6208]
[1693584135925,0.3,25800.0,25799.0,0.6208]
[1693584136224,0.336,25800.0,25799.0,0.66710695]
[1693584136618,0.33987,25800.0,25799.0,0.6208]
[1693584137131,0.036,25800.0,25799.0,0.006]
[1693584137323,0.072,25800.0,25799.0,0.02]
[1693584137516,0.072,25800.0,25799.0,0.04030695]
[1693584137714,0.072,25800.0,25799.0,0.04630695]
[1693584138325,0.072,25800.0,25799.0,0.66710695]
[1693584138825,0.4965328,25804.0,25803.0,0.00388]
[1693584139138,0.57308118,25804.0,25803.0,0.00388]
[1693584139316,0.57308118,25804.0,25801.0,0.6208]
[1693584139516,0.5165328,25804.0,25803.0,0.00388]
[1693584140028,0.57308118,25804.0,25801.0,0.6208]
[1693584140230,0.5525328,25804.0,25802.0,0.006]
[1693584140520,0.5525328,25804.0,25801.0,0.6208]
[1693584140719,0.60722187,25804.0,25801.0,0.6208]
[1693584141120,0.35987,25804.0,25802.0,0.02030695]
[1693584141316,0.036,25804.0,25803.0,0.62468]
[1693584141512,0.036,25804.0,25803.0,0.65098695]
[1693584141513,0.072,25804.0,25803.0,0.65098695]
[1693584142322,0.072,25804.0,25803.0,0.64710695]
[1693584142523,0.13155907,25804.0,25802.0,0.00488]
[1693584142826,0.09687,25804.0,25802.0,0.00488]
[1693584143027,0.05654838,25803.0,25802.0,0.00488]
[1693584143219,0.11123745,25803.0,25802.0,0.00488]
[1693584143420,0.11123745,25803.0,25801.0,0.6208]
[1693584143619,0.11123745,25803.0,25801.0,0.6268]
[1693584143620,0.05654838,25803.0,25801.0,0.6268]
[1693584143826,0.07587,25804.0,25801.0,0.6208]
[1693584144023,0.09587,25804.0,25802.0,0.001]
[1693584144321,0.072,25804.0,25803.0,0.64110695]
[1693584144717,0.072,25804.0,25803.0,0.64710695]
[1693584145223,0.03987,25804.0,25803.0,0.64110695]
[1693584145426,0.2325328,25804.0,25802.0,0.6218]
[1693584145825,0.05654838,25803.0,25802.0,0.6208]
[1693584146021,0.09254838,25803.0,25802.0,0.6208]
[1693584146414,0.05654838,25803.0,25802.0,0.6208]
[1693584146620,0.05654838,25803.0,25802.0,0.6218]
[1693584146920,0.05654838,25803.0,25802.0,0.001]
[1693584147121,0.14723745,25803.0,25802.0,0.001]
[1693584147527,0.09254838,25803.0,25802.0,0.001]
[1693584148019,0.036,25803.0,25802.0,0.007]
[1693584148222,0.072,25803.0,25802.0,0.001]
[1693584148421,0.18323745,25803.0,25802.0,0.001]
[1693584148622,0.12854838,25803.0,25802.0,0.001]
[1693584148821,0.18323745,25803.0,25802.0,0.001]
[1693584149627,0.12854838,25803.0,25802.0,0.001]
[1693584149824,0.072,25803.0,25802.0,0.64568]
[1693584150329,0.072,25803.0,25802.0,0.66210695]
[1693584150726,0.036,25803.0,25802.0,0.021]
[1693584150943,0.26482617,25803.0,25802.0,0.001]
[1693584151119,0.18323745,25803.0,25802.0,0.001]
[1693584152333,0.18323745,25803.0,25802.0,0.42]
[1693584152334,0.79506362,25803.0,25802.0,0.42]
[1693584153027,0.60223745,25803.0,25802.0,0.42]
[1693584153531,0.54754838,25803.0,25802.0,0.42]
[1693584153728,1.74754838,25803.0,25802.0,0.42]
[1693584154029,2.63154838,25803.0,25802.0,0.001]
[1693584154225,2.66754838,25803.0,25802.0,0.001]
[1693584154430,2.72223745,25803.0,25802.0,0.001]
[1693584155022,2.72223745,25803.0,25797.0,0.97859]
[1693584155023,0.3,25799.0,25797.0,0.00388]
[1693584155216,0.419,25798.0,25797.0,0.00388]
[1693584155628,0.53023745,25798.0,25797.0,0.00388]
[1693584156124,0.53023745,25798.0,25796.0,0.419]
[1693584156323,0.11123745,25797.0,25796.0,0.419]
[1693584156726,0.05654838,25797.0,25796.0,0.419]
[1693584157431,0.11123745,25797.0,25796.0,0.419]
[1693584157635,0.09254838,25797.0,25796.0,0.42]
[1693584157926,0.14723745,25797.0,25796.0,0.42]
[1693584158122,0.18323745,25797.0,25796.0,0.42]
[1693584158323,0.60223745,25797.0,25796.0,0.001]
[1693584162644,0.491,25797.0,25796.0,0.001]
[1693584163028,0.072,25797.0,25796.0,0.42]
[1693584163227,0.072,25797.0,25796.0,0.44630695]
[1693584163629,0.072,25797.0,25796.0,0.45018695]
[1693584164234,0.072,25797.0,25796.0,0.44630695]
[1693584164635,0.072,25797.0,25796.0,0.45018695]
[1693584164935,0.072,25797.0,25796.0,0.46630695]
[1693584166332,0.036,25797.0,25796.0,0.46730695]
[1693584166530,0.072,25797.0,25796.0,0.46730695]
[1693584166731,0.3613178,25804.0,25801.0,0.00388]
[1693584167037,0.38150198,25804.0,25803.0,0.419]
[1693584167237,0.02387,25804.0,25803.0,0.419]
[1693584167431,0.44287,25804.0,25802.0,0.419]
[1693584167639,0.19292398,25803.0,25802.0,0.419]
[1693584167835,0.24947236,25803.0,25802.0,0.419]
[1693584168034,0.11123745,25803.0,25802.0,0.419]
[1693584168441,0.05654838,25803.0,25802.0,0.422]
[1693584168741,0.05654838,25803.0,25802.0,0.44230695]
[1693584168934,0.05654838,25803.0,25802.0,0.419]
[1693584169140,0.09354838,25803.0,25802.0,0.422]
[1693584169333,0.51254838,25803.0,25802.0,0.003]
[1693584169733,1.76723745,25803.0,25802.0,0.003]
[1693584169938,2.01853481,25803.0,25802.0,0.003]
[1693584170357,2.01887699,25803.0,25802.0,0.003]
[1693584170742,0.30387,25800.0,25796.0,0.423]
[1693584170939,2.01887699,25803.0,25787.0,0.11980585]
[1693584170940,2.1,25796.0,25787.0,0.11980585]
[1693584171140,0.419,25792.0,25790.0,0.419]
[1693584171440,0.419,25792.0,25791.0,0.02630695]
[1693584171635,0.419,25792.0,25791.0,0.04630695]
[1693584172240,0.621,25793.0,25791.0,0.04630695]
[1693584172539,0.621,25793.0,25791.0,0.02030695]
[1693584172932,0.67754838,25793.0,25791.0,0.02630695]
[1693584173132,0.67754838,25793.0,25791.0,0.04030695]
[1693584173336,0.05654838,25793.0,25791.0,0.66130695]
[1693584173649,0.3155,25795.0,25793.0,0.00388]
[1693584173853,0.37018907,25795.0,25793.0,0.00388]
[1693584174142,0.05654838,25794.0,25793.0,0.00388]
[1693584174650,0.05654838,25794.0,25793.0,0.00688]
[1693584175142,0.3525,25795.0,25793.0,0.02930695]
[1693584175343,0.036,25794.0,25793.0,0.02430695]
[1693584175544,0.036,25794.0,25793.0,0.02818695]
[1693584175735,0.036,25794.0,25793.0,0.03030695]
[1693584176137,0.036,25794.0,25793.0,0.03818695]
[1693584176739,0.072,25794.0,25793.0,0.03818695]
[1693584177145,0.072,25794.0,25793.0,0.05818695]
[1693584178048,0.036,25794.0,25793.0,0.03718695]
[1693584178248,0.036,25794.0,25793.0,0.05718695]
[1693584178542,0.036,25794.0,25793.0,0.05418695]
[1693584178741,0.072,25794.0,25793.0,0.05818695]
[1693584180048,0.072,25794.0,25793.0,0.03818695]
[1693584180350,0.072,25794.0,25793.0,0.05818695]
[1693584181138,0.072,25794.0,25793.0,0.03818695]
[1693584181337,0.072,25794.0,25793.0,0.03430695]
[1693584182246,0.072,25794.0,25793.0,0.03818695]
[1693584182548,0.072,25794.0,25793.0,0.03430695]
[1693584182849,0.072,25794.0,25793.0,0.02830695]
[1693584183052,0.072,25794.0,25793.0,0.03430695]
[1693584183246,0.072,25794.0,25793.0,0.02830695]
[1693584183549,0.072,25794.0,25793.0,0.008]
[1693584183749,0.072,25794.0,25793.0,0.02830695]
[1693584184351,0.072,25794.0,25793.0,0.03430695]
[1693584184550,0.072,25794.0,25793.0,0.03818695]
[1693584185759,0.072,25794.0,25793.0,0.03430695]
[1693584186052,0.072,25794.0,25793.0,0.03818695]
[1693584186249,0.12854838,25794.0,25793.0,0.01188]
[1693584186451,0.12854838,25794.0,25793.0,0.008]
[1693584186852,0.18323745,25794.0,25793.0,0.008]
[1693584187248,0.072,25794.0,25793.0,0.01188]
[1693584187650,0.072,25794.0,25793.0,0.008]
[1693584187956,0.072,25794.0,25793.0,0.03430695]
[1693584188147,0.072,25794.0,25793.0,0.03818695]
[1693584188348,0.072,25794.0,25793.0,0.03218695]
[1693584189152,0.072,25794.0,25793.0,0.01188]
[1693584189353,0.18323745,25794.0,25793.0,0.01188]
[1693584190848,0.12854838,25794.0,25793.0,0.008]
[1693584191053,0.12854838,25794.0,25793.0,0.01188]
[1693584191247,0.12854838,25794.0,25793.0,0.008]
[1693584191856,0.18323745,25794.0,25793.0,0.008]
[1693584192248,0.20323745,25794.0,25793.0,0.008]
[1693584192450,0.62243745,25794.0,25793.0,0.008]
[1693584192664,0.81545031,25794.0,25793.0,0.008]
[1693584193060,0.62243745,25794.0,25793.0,0.008]
[1693584196354,0.81490724,25794.0,25793.0,0.008]
[1693584200177,0.62243745,25794.0,25793.0,0.008]
[1693584200466,0.62243745,25794.0,25783.0,0.4192]
[1693584200467,1.2,25788.0,25783.0,0.4192]
[1693584200762,0.4192,25784.0,25783.0,0.4192]
[1693584200954,0.53043745,25784.0,25783.0,0.4192]
[1693584201151,0.55043745,25784.0,25779.0,0.7421]
[1693584201363,0.4192,25781.0,25779.0,0.7421]
[1693584201561,0.11123745,25780.0,25779.0,0.4192]
[1693584202266,0.55043745,25780.0,25777.0,0.00012]
[1693584202464,0.4192,25778.0,25777.0,0.00012]
[1693584202866,0.55043745,25778.0,25777.0,0.00012]
[1693584203167,0.4192,25778.0,25777.0,0.00012]
[1693584203960,0.47574838,25778.0,25777.0,0.00012]
[1693584204475,0.002,25780.0,25777.0,0.00012]
[1693584204476,0.4192,25779.0,25777.0,0.41932]
[1693584204673,0.002,25780.0,25778.0,0.4192]
[1693584204965,0.002,25780.0,25779.0,0.44550695]
[1693584205169,0.008,25780.0,25779.0,0.46550695]
[1693584205354,0.04148781,25780.0,25779.0,0.45950695]
[1693584205955,0.04148781,25780.0,25779.0,0.46550695]
[1693584206157,0.008,25780.0,25779.0,0.44550695]
[1693584206368,0.008,25780.0,25779.0,0.46650695]
[1693584207463,0.013,25780.0,25779.0,0.4272]
[1693584207659,0.4322,25780.0,25779.0,0.44150695]
[1693584207856,0.4322,25780.0,25779.0,0.46150695]
[1693584208061,0.4322,25780.0,25779.0,0.46750695]
[1693584208262,0.013,25780.0,25779.0,0.44750695]
[1693584208559,0.013,25780.0,25779.0,0.46750695]
[1693584209256,0.013,25780.0,25779.0,0.44750695]
[1693584209460,0.013,25780.0,25779.0,0.46750695]
[1693584211672,0.013,25780.0,25779.0,0.44750695]
[1693584211973,0.013,25780.0,25779.0,0.44150695]
[1693584212167,0.4322,25780.0,25779.0,0.44150695]
[1693584212769,0.013,25780.0,25779.0,0.44150695]
[1693584213074,0.013,25780.0,25779.0,0.46750695]
[1693584215972,0.013,25780.0,25779.0,0.44750695]
[1693584216171,0.013,25780.0,25779.0,0.44150695]
[1693584216368,0.013,25780.0,25779.0,0.44750695]
[1693584218475,0.013,25780.0,25779.0,0.44150695]
[1693584218775,0.013,25780.0,25779.0,0.44750695]
[1693584218969,0.013,25780.0,25779.0,0.44150695]
[1693584219377,0.013,25780.0,25779.0,0.44750695]
[1693584223384,0.06954838,25780.0,25779.0,0.4212]
[1693584223685,0.013,25780.0,25779.0,0.4212]
[1693584223883,0.013,25780.0,25779.0,0.4272]
[1693584224183,0.013,25780.0,25779.0,0.44750695]
[1693584224978,0.013,25780.0,25779.0,0.4212]
[1693584225580,0.013,25780.0,25779.0,0.44750695]
[1693584225787,0.013,25780.0,25779.0,0.46750695]
[1693584226082,0.013,25780.0,25779.0,0.44750695]
[1693584229789,0.013,25780.0,25779.0,0.44150695]
[1693584230184,0.013,25780.0,25779.0,0.44750695]
[1693584232191,0.08954838,25780.0,25779.0,0.4212]
[1693584232399,0.48874838,25780.0,25779.0,0.002]
[1693584232585,0.50874838,25780.0,25779.0,0.002]
[1693584232890,0.71423745,25780.0,25779.0,0.002]
[1693584234691,0.65954838,25780.0,25779.0,0.002]
[1693584235289,0.71423745,25780.0,25779.0,0.002]
[1693584235507,0.71423745,25780.0,25779.0,0.00184202]
[1693584238790,1.91423745,25780.0,25779.0,0.00184202]
[1693584241094,0.71423745,25780.0,25779.0,0.00184202]
[1693584242997,2.51423745,25780.0,25779.0,0.00184202]
[1693584245296,2.70634123,25780.0,25779.0,0.00184202]
[1693584246184,2.70672644,25780.0,25779.0,0.00184202]
[1693584246793,2.51423745,25780.0,25779.0,0.00184202]
[1693584247195,2.70672566,25780.0,25779.0,0.00184202]
[1693584250395,2.68672566,25780.0,25779.0,0.00184202]
[1693584250598,2.70672566,25780.0,25779.0,0.00184202]
[1693584251189,0.3,25778.0,25777.0,0.00012]
[1693584251394,0.83043745,25778.0,25777.0,0.00012]
[1693584251702,2.08200773,25778.0,25777.0,0.00012]
[1693584252593,2.12100773,25778.0,25777.0,0.00012]
[1693584253408,2.10100773,25778.0,25777.0,0.00012]
[1693584253605,2.12100773,25778.0,25777.0,0.00012]
[1693584253905,2.10100773,25778.0,25777.0,0.00012]
[1693584254101,2.12100773,25778.0,25777.0,0.00012]
[1693584254806,2.15400773,25778.0,25777.0,0.00012]
[1693584255000,2.13400773,25778.0,25777.0,0.00012]
[1693584262410,2.10243745,25778.0,25777.0,0.00012]
[1693584265005,0.90243745,25778.0,25777.0,0.00012]
[1693584265205,0.072,25778.0,25777.0,0.43932]
[1693584265605,0.072,25778.0,25777.0,0.46562695]
[1693584266803,0.0238,25778.0,25777.0,0.46562695]
[1693584269109,0.6501,25786.0,25777.0,0.43932]
[1693584269416,0.26909923,25799.0,25794.0,0.3]
[1693584269623,0.26909923,25807.0,25798.0,0.3]
[1693584269805,0.76518472,25809.0,25808.0,0.00388]
[1693584269806,0.4192,25809.0,25808.0,0.00388]
[1693584270117,0.4192,25809.0,25808.0,0.43950695]
[1693584270418,0.4192,25809.0,25808.0,0.4192]
[1693584270419,0.47574838,25809.0,25808.0,0.4192]
[1693584270611,0.47574838,25809.0,25808.0,0.42308]
[1693584270807,0.47574838,25809.0,25808.0,0.4192]
[1693584271008,0.4192,25809.0,25808.0,0.4232]
[1693584271312,0.036,25809.0,25808.0,0.43108]
[1693584271611,0.072,25809.0,25808.0,0.45350695]
[1693584272408,0.072,25809.0,25808.0,0.65470695]
[1693584273716,0.003,25809.0,25808.0,0.67470695]
[1693584274020,0.039,25809.0,25808.0,0.67870695]
[1693584274512,0.003,25809.0,25808.0,0.67470695]
[1693584274818,0.6735,25812.0,25811.0,2.24994057]
[1693584275020,0.7814,25831.0,25821.0,1.27558]
[1693584275207,0.6204,25829.0,25825.0,0.6204]
[1693584275403,0.6204,25829.0,25822.0,0.6204]
[1693584275404,0.6204,25826.0,25822.0,0.6204]
[1693584275714,0.6404,25826.0,25822.0,0.6204]
[1693584275919,0.05654838,25825.0,25822.0,0.6204]
[1693584276112,0.6404,25826.0,25822.0,0.6204]
[1693584276315,0.1597,25828.0,25825.0,0.6204]
[1693584276617,0.1797,25828.0,25827.0,0.6204]
[1693584276806,0.23624838,25828.0,25827.0,0.6204]
[1693584277012,0.1597,25828.0,25826.0,0.6204]
[1693584277614,0.1797,25828.0,25826.0,0.6204]
[1693584277812,0.1597,25828.0,25826.0,0.6204]
[1693584278119,0.2337,25828.0,25827.0,0.006]
[1693584278316,0.93450838,25828.0,25827.0,0.006]
[1693584278517,0.89750838,25828.0,25827.0,0.003]
[1693584278816,0.00386,25827.0,25826.0,0.006]
[1693584279016,0.06040838,25827.0,25826.0,0.6264]
[1693584279213,0.00386,25827.0,25826.0,0.6264]
[1693584279415,0.13509745,25827.0,25826.0,0.6264]
[1693584279812,0.10040838,25827.0,25826.0,0.6264]
[1693584280016,0.04,25827.0,25826.0,0.6264]
[1693584280212,0.2337,25828.0,25827.0,0.003]
[1693584280613,0.29024838,25828.0,25827.0,0.003]
[1693584280917,0.31024838,25828.0,25827.0,0.006]
[1693584281925,0.31024838,25828.0,25827.0,0.6264]
[1693584282510,0.27324838,25828.0,25827.0,0.6234]
[1693584283020,0.27710838,25828.0,25827.0,0.6234]
[1693584283824,1.20386,25824.0,25823.0,0.6204]
[1693584284021,1.20386,25824.0,25815.0,0.6662]
[1693584284022,0.00386,25818.0,25815.0,0.0458]
[1693584284228,0.00386,25817.0,25815.0,0.0458]
[1693584284517,0.00386,25821.0,25816.0,0.6204]
[1693584284715,0.00386,25822.0,25820.0,0.6204]
[1693584284917,0.02940865,25824.0,25815.0,0.6662]
[1693584284918,0.00386,25820.0,25815.0,0.6662]
[1693584285224,0.00386,25820.0,25819.0,0.6204]
[1693584285420,0.02386,25820.0,25819.0,0.6204]
[1693584286314,0.00386,25821.0,25819.0,0.6204]
[1693584286520,0.00386,25821.0,25820.0,0.6234]
[1693584287024,0.16436,25821.0,25820.0,0.6234]
[1693584287525,0.16436,25821.0,25820.0,0.6204]
[1693584287717,0.18436,25821.0,25820.0,0.6204]
[1693584287912,0.20136,25821.0,25820.0,0.6234]
[1693584288126,0.34859745,25821.0,25820.0,0.6264]
[1693584288523,0.29390838,25821.0,25820.0,0.6264]
[1693584288825,0.31382803,25821.0,25820.0,0.6264]
[1693584289017,0.33382803,25821.0,25820.0,0.6264]
[1693584289223,0.3515171,25821.0,25820.0,0.6234]
[1693584289426,0.3885171,25821.0,25820.0,0.6264]
[1693584289626,0.33382803,25821.0,25820.0,0.6264]
[1693584289827,0.3885171,25821.0,25820.0,0.6264]
[1693584290027,0.33382803,25821.0,25820.0,0.6264]
[1693584290215,0.3885171,25821.0,25820.0,0.6264]
[1693584290419,0.33382803,25821.0,25820.0,0.6264]
[1693584290625,0.31382803,25821.0,25820.0,0.6264]
[1693584291117,0.33382803,25821.0,25820.0,0.6264]
[1693584291315,0.29682803,25821.0,25820.0,0.6234]
[1693584291518,0.33382803,25821.0,25820.0,0.6264]
[1693584292429,0.3885171,25821.0,25820.0,0.6264]
[1693584292623,0.33382803,25821.0,25820.0,0.6264]
[1693584293323,0.33382803,25821.0,25820.0,20.6264]
[1693584293521,0.27727965,25821.0,25820.0,20.6264]
[1693584293722,0.27827965,25821.0,25820.0,20.6264]
[1693584294420,0.20427965,25821.0,25820.0,20.6204]
[1693584294633,0.27727965,25821.0,25820.0,20.6264]
[1693584295422,0.22127965,25821.0,25820.0,20.6234]
[1693584295623,0.25827965,25821.0,25820.0,20.6264]
[1693584295830,20.25827965,25821.0,25820.0,20.6264]
[1693584296630,20.31482803,25821.0,25820.0,20.6264]
[1693584297022,20.31382803,25821.0,25820.0,20.6264]
[1693584297230,20.3685171,25821.0,25820.0,20.6264]
[1693584297631,20.3885171,25821.0,25820.0,20.6264]
[1693584297833,20.6885171,25821.0,25820.0,20.6264]
[1693584298025,20.6685171,25821.0,25820.0,20.6264]
[1693584298423,20.6685171,25821.0,25820.0,20.6234]
[1693584298623,20.6525171,25821.0,25820.0,20.6264]
[1693584298832,20.6895171,25821.0,25820.0,20.6264]
[1693584299031,21.8895171,25821.0,25820.0,20.6264]
[1693584301137,21.8885171,25821.0,25820.0,20.6264]
[1693584301630,23.0889171,25821.0,25820.0,19.4864]
[1693584301834,22.9284171,25821.0,25820.0,18.9869]
[1693584302042,22.9284171,25821.0,25820.0,18.4875]
[1693584302232,22.9284171,25821.0,25820.0,18.4864]
[1693584302739,22.25146872,25821.0,25820.0,18.4864]
[1693584303129,22.3080171,25821.0,25820.0,18.4864]
[1693584303935,22.0080171,25821.0,25820.0,18.4864]
[1693584304239,22.3080171,25821.0,25820.0,18.4864]
[1693584308537,20.5080171,25821.0,25820.0,18.4864]
[1693584308835,20.073,25821.0,25820.0,19.1068]
[1693584309036,20.073,25821.0,25820.0,19.1268]
[1693584309840,20.12954838,25821.0,25820.0,19.1268]
[1693584310138,20.073,25821.0,25820.0,19.1068]
[1693584310338,20.073,25821.0,25820.0,19.1268]
[1693584313636,19.6641,25821.0,25820.0,19.1268]
[1693584313836,19.4205,25821.0,25820.0,19.1268]
[1693584314039,16.5506,25821.0,25820.0,19.4268]
[1693584314339,16.2015,25821.0,25820.0,19.4268]
[1693584314531,16.0922,25821.0,25820.0,19.4268]
[1693584314730,16.02,25821.0,25820.0,19.4268]
[1693584314945,15.9471,25821.0,25820.0,19.4268]
[1693584315245,13.3261,25821.0,25820.0,19.4268]
[1693584315441,13.3261,25821.0,25820.0,20.39794564]
[1693584316230,13.3061,25821.0,25820.0,20.39794564]
[1693584316542,13.2721,25821.0,25820.0,20.41294564]
[1693584316741,13.2721,25821.0,25820.0,21.60668864]
[1693584316941,7.9941,25821.0,25820.0,22.35362921]
[1693584317138,7.89720461,25821.0,25820.0,23.95760637]
[1693584317341,7.89520461,25821.0,25820.0,23.93960637]
[1693584317535,7.90020461,25821.0,25820.0,23.97960637]
[1693584318039,7.90020461,25821.0,25820.0,22.30526014]
[1693584318245,7.90020461,25821.0,25820.0,23.97963163]
[1693584318549,7.90120461,25821.0,25820.0,23.362285]
[1693584318736,7.90120461,25821.0,25820.0,23.24669106]
[1693584318937,7.90120461,25821.0,25820.0,23.36231689]
[1693584319339,7.90120461,25821.0,25820.0,23.25669106]
[1693584319539,7.90120461,25821.0,25820.0,23.37231721]
[1693584319735,7.90120461,25821.0,25820.0,23.25669106]
[1693584324163,5.28120461,25821.0,25820.0,23.25669106]
[1693584324361,5.28120461,25821.0,25820.0,22.96490296]
[1693584324658,5.33775299,25821.0,25820.0,20.59117393]
[1693584324858,5.33775299,25821.0,25820.0,20.66824965]
[1693584325362,5.28120461,25821.0,25820.0,20.66824965]
[1693584325658,5.28120461,25821.0,25820.0,20.59117393]
[1693584325861,5.28120461,25821.0,25820.0,21.26747258]
[1693584326162,5.28120461,25821.0,25820.0,21.19040586]
[1693584326461,5.28120461,25821.0,25820.0,21.24746756]
[1693584326662,5.28120461,25821.0,25820.0,21.26746756]
[1693584326858,5.28120461,25821.0,25820.0,21.65486756]
[1693584327654,5.28120461,25821.0,25820.0,21.24746756]
[1693584331462,5.28120461,25821.0,25820.0,21.17040586]
[1693584333465,5.28120461,25821.0,25820.0,21.24746756]
[1693584333670,5.28120461,25821.0,25820.0,21.17040586]
[1693584337270,5.30120461,25821.0,25820.0,21.17040586]
[1693584337674,5.30499426,25821.0,25820.0,21.17040586]
[1693584338064,5.30499426,25821.0,25820.0,20.29117393]
[1693584338374,5.32499426,25821.0,25820.0,19.67077393]
[1693584338575,5.43623171,25821.0,25820.0,19.67077393]
[1693584338770,5.41623171,25821.0,25820.0,19.22407393]
[1693584339070,5.41623171,25821.0,25820.0,17.379]
[1693584339281,5.41623171,25821.0,25820.0,17.1015]
[1693584339467,5.41623171,25821.0,25820.0,17.0815]
[1693584339976,5.35968333,25821.0,25820.0,17.0815]
[1693584340677,5.39368333,25821.0,25820.0,17.0475]
[1693584341175,5.45023171,25821.0,25820.0,17.0099]
[1693584341365,6.06763171,25821.0,25820.0,16.544]
[1693584341572,5.48423171,25821.0,25820.0,16.4671]
[1693584341975,5.48423171,25821.0,25820.0,16.4641]
[1693584342275,5.48423171,25821.0,25820.0,16.4671]
[1693584344673,5.48423171,25821.0,25820.0,16.4641]
[1693584344879,5.48423171,25821.0,25820.0,16.4671]
[1693584345875,5.44723171,25821.0,25820.0,16.4641]
[1693584346076,5.48423171,25821.0,25820.0,16.4671]
[1693584346677,6.10463171,25821.0,25820.0,16.4671]
[1693584347174,6.40463171,25821.0,25820.0,16.4671]
[1693584347391,7.60463171,25821.0,25820.0,16.4671]
[1693584347781,7.60463171,25821.0,25820.0,16.4471]
[1693584350878,8.20463171,25821.0,25820.0,13.8271]
[1693584351083,8.22399171,25821.0,25820.0,13.8271]
[1693584353579,8.97399171,25821.0,25820.0,13.7471]
[1693584354279,11.20619171,25821.0,25820.0,8.24462511]
[1693584354674,11.20619171,25821.0,25820.0,7.99492511]
[1693584354877,11.20619171,25821.0,25820.0,7.49552511]
[1693584355082,11.20619171,25821.0,25820.0,6.99612511]
[1693584355284,11.20619171,25821.0,25820.0,6.49472511]
[1693584355582,11.20619171,25821.0,25820.0,6.10402511]
[1693584355778,11.20619171,25821.0,25820.0,6.10302511]
[1693584355976,11.20619171,25821.0,25820.0,5.93402511]
[1693584356177,10.78179171,25821.0,25820.0,3.31302511]
[1693584356372,10.81879171,25821.0,25820.0,3.31402511]
[1693584357781,10.81879171,25821.0,25820.0,0.69402511]
[1693584358378,10.21879171,25821.0,25820.0,0.69402511]
[1693584359976,10.21879171,25821.0,25820.0,0.38302511]
[1693584361282,10.4105042,25821.0,25820.0,0.38302511]
[1693584362279,10.3905042,25821.0,25820.0,0.38302511]
[1693584362486,10.4105042,25821.0,25820.0,0.38302511]
[1693584363189,10.3905042,25821.0,25820.0,0.38302511]
[1693584364795,10.19879171,25821.0,25820.0,0.38302511]
[1693584367096,0.3,25819.0,25818.0,0.00058093]
[1693584367285,5.47980206,25821.0,25818.0,0.00058093]
[1693584367286,5.28920461,25821.0,25818.0,0.64098093]
[1693584367486,5.28920461,25821.0,25819.0,0.6204]
[1693584367681,5.28140461,25821.0,25820.0,0.11123745]
[1693584367888,4.78180461,25821.0,25820.0,0.13123745]
[1693584368098,4.28220461,25821.0,25820.0,0.13123745]
[1693584368395,4.13140461,25821.0,25820.0,0.13123745]
[1693584368590,4.11270461,25821.0,25820.0,0.13123745]
[1693584368894,4.10250461,25821.0,25820.0,0.13123745]
[1693584369098,3.83080461,25821.0,25820.0,0.13423745]
[1693584369296,3.79140461,25821.0,25820.0,0.13423745]
[1693584369596,3.81640461,25821.0,25820.0,0.13623745]
[1693584369895,3.81640461,25821.0,25820.0,0.025]
[1693584374092,3.81640461,25821.0,25820.0,0.6454]
[1693584374597,3.78040461,25821.0,25820.0,0.6424]
[1693584374896,3.85038716,25821.0,25820.0,0.6454]
[1693584375692,3.60058716,25821.0,25820.0,0.6454]
[1693584375895,3.35938716,25821.0,25820.0,0.6454]
[1693584376198,3.35938716,25821.0,25820.0,0.75663745]
[1693584376699,3.35938716,25821.0,25820.0,0.6454]
[1693584377992,3.32540461,25821.0,25820.0,0.6454]
[1693584378194,2.95050461,25821.0,25820.0,0.75663745]
[1693584378398,2.44970461,25821.0,25820.0,0.75663745]
[1693584378596,1.94990461,25821.0,25820.0,0.75663745]
[1693584378797,1.73080461,25821.0,25820.0,0.75663745]
[1693584379787,1.70540461,25821.0,25820.0,0.75663745]
[1693584379991,1.57380461,25821.0,25820.0,0.75663745]
[1693584380394,1.45070461,25821.0,25820.0,1.87307979]
[1693584380599,1.43340461,25821.0,25820.0,1.87307979]
[1693584380798,1.26830461,25821.0,25820.0,2.45492696]
[1693584382197,1.26830461,25821.0,25820.0,1.87307979]